fUST/lending_fUST_20250117
["ID","MTS","AMOUNT","RATE_DAILY","PERIOD"]
[349271462,1737087048192,-500.0,0.00019989,2]
[349271464,1737087048203,-500.0,0.00019989,2]
[349271466,1737087048213,-500.0,0.00019989,2]
[349271468,1737087048222,-500.0,0.00019989,2]
[349271470,1737087048231,-500.0,0.00019989,2]
[349271472,1737087048241,-500.0,0.00019989,2]
[349271473,1737087048250,-500.0,0.00019989,2]
[349271475,1737087048260,-500.0,0.00019989,2]
[349271477,1737087048270,-500.0,0.00019989,2]
[349271480,1737087048280,-500.0,0.00019989,2]
[349271481,1737087048290,-500.0,0.00019989,2]
[349271483,1737087048300,-500.0,0.00019989,2]
[349271486,1737087048310,-500.0,0.00019989,2]
[349271487,1737087048320,-500.0,0.00019989,2]
[349271490,1737087048330,-500.0,0.00019989,2]
[349271492,1737087048339,-500.0,0.00019989,2]
[349271493,1737087048349,-500.0,0.00019989,2]
[349271495,1737087048358,-500.0,0.00019989,2]
[349271497,1737087048368,-500.0,0.00019989,2]
[349271499,1737087048378,-500.0,0.00019989,2]
[349271501,1737087048387,-500.0,0.00019989,2]
[349271503,1737087048397,-420.72132628,0.00019989,2]
[349271505,1737087048408,-500.0,0.00019989,2]
[349271507,1737087048418,-500.0,0.00019989,2]
[349271508,1737087048427,-500.0,0.00019989,2]
[349271509,1737087048436,-151.0,0.00019989,2]
[349271510,1737087048446,-151.0,0.00019989,2]
[349271511,1737087048455,-151.528724,0.00019989,2]
[349271512,1737087048465,-151.884181,0.00019989,2]
[349271516,1737087048594,-151.0,0.00019989,2]
[349271519,1737087048604,-151.0,0.00019989,2]
[349271520,1737087048614,-151.0,0.00019989,2]
[349271522,1737087048623,-151.0,0.00019989,2]
[349271524,1737087048633,-154.108948,0.00019989,2]
[349271526,1737087048643,-158.569053,0.00019989,2]
[349271528,1737087048652,-151.0,0.00019989,2]
[349271530,1737087048664,-151.0,0.00019989,2]
[349271532,1737087048674,-269.826912,0.00019989,2]
[349271534,1737087048684,-156.590779,0.00019989,2]
[349271536,1737087048694,-151.0,0.00019989,2]
[349271538,1737087048703,-151.0,0.00019989,2]
[349271540,1737087048713,-151.643237,0.00019989,2]
[349271542,1737087048723,-151.0,0.00019989,2]
[349271544,1737087048732,-151.0,0.00019989,2]
[349271546,1737087048742,-151.0,0.00019989,2]
[349271548,1737087048752,-155.338106,0.00019989,2]
[349271550,1737087048762,-742.547044,0.00019989,2]
[349271552,1737087048772,-742.547044,0.00019989,2]
[349271554,1737087048781,-742.547044,0.00019989,2]
[349271556,1737087048791,-742.547044,0.00019989,2]
[349271558,1737087048799,-151.0,0.00019989,2]
[349271560,1737087048808,-160.36577,0.00019989,2]
[349271562,1737087048818,-151.0,0.00019989,2]
[349271564,1737087048828,-161.018886,0.00019989,2]
[349271566,1737087048837,-151.0,0.00019989,2]
[349271568,1737087048847,-151.0,0.00019989,2]
[349271570,1737087048861,-151.0,0.00019989,2]
[349271572,1737087048870,-151.0,0.00019989,2]
[349271574,1737087048880,-151.0,0.00019989,2]
[349271576,1737087048891,-151.0,0.00019989,2]
[349271578,1737087048901,-151.0,0.00019989,2]
[349271580,1737087048911,-151.0,0.00019989,2]
[349271582,1737087048921,-152.753506,0.00019989,2]
[349271583,1737087048930,-170.23666,0.00019989,2]
[349271585,1737087048940,-151.0,0.00019989,2]
[349271588,1737087048950,-151.0,0.00019989,2]
[349271590,1737087048960,-151.0,0.00019989,2]
[349271591,1737087048970,-151.0,0.00019989,2]
[349271593,1737087048979,-151.0,0.00019989,2]
[349271596,1737087048990,-164.304526,0.00019989,2]
[349271597,1737087048999,-151.0,0.00019989,2]
[349271599,1737087049009,-169.645956,0.00019989,2]
[349271602,1737087049019,-151.0,0.00019989,2]
[349271604,1737087049029,-151.0,0.00019989,2]
[349271606,1737087049039,-273.698216,0.00019989,2]
[349271608,1737087049049,-273.698216,0.00019989,2]
[349271610,1737087049059,-273.698216,0.00019989,2]
[349271612,1737087049068,-273.698216,0.00019989,2]
[349271614,1737087049078,-151.0,0.00019989,2]
[349271616,1737087049087,-151.0,0.00019989,2]
[349271618,1737087049096,-151.541356,0.00019989,2]
[349271620,1737087049106,-65095.41775436,0.0001999,10]
[349271622,1737087049121,-1283.86860858,0.0001999,10]
[349271812,1737087381508,261.867739,0.00013973,2]
[349271814,1737087544146,414.4044643,0.00025,120]
[349271831,1737088078519,2370.0,0.00025,120]
[349271834,1737088099729,4599.36351898,0.000125,2]
[349271908,1737088231935,-300.0,0.00017819,2]
[349271910,1737088231945,-204.32939025,0.00017999,2]
[349271921,1737088232046,-95.67060975,0.00017999,2]
[349271923,1737088232056,-17939.61027767,0.00018,2]
[349271925,1737088232066,-5506.0366586,0.00018915,2]
[349272284,1737088237803,-7439.21295871,0.00018915,2]
[349272286,1737088237813,-12945.24961731,0.00019235,2]
[349272288,1737088237823,-166.2768501,0.00019343,2]
[349272290,1737088237832,-12945.24961731,0.00019624,2]
[349272292,1737088237842,-420.0,0.00019639,2]
[349272294,1737088237851,-266.5495878,0.0001969,2]
[349272296,1737088237861,-508.45290686,0.00019691,7]
[349272298,1737088237870,-485.47354115,0.00019855,2]
[349272300,1737088237880,-615.41045928,0.000199,2]
[349272302,1737088237891,-154.41,0.00019973,2]
[349272304,1737088237901,-295.47388613,0.00019973,2]
[349272306,1737088237910,-160.90219745,0.00019973,2]
[349272308,1737088237920,-247.59677973,0.00019989,2]
[349272310,1737088237929,-500.0,0.00019989,2]
[349272312,1737088237939,-500.0,0.00019989,2]
[349272314,1737088237948,-500.0,0.00019989,2]
[349272316,1737088237958,-183.63156088,0.00019989,2]
[349272319,1737088237967,-500.0,0.00019989,2]
[349272322,1737088237977,-500.0,0.00019989,2]
[349272325,1737088237987,-465.52867968,0.00019989,2]
[349272328,1737088237996,-500.0,0.00019989,2]
[349272331,1737088238006,-500.0,0.00019989,2]
[349272334,1737088238016,-500.0,0.00019989,2]
[349272337,1737088238025,-500.0,0.00019989,2]
[349272340,1737088238035,-500.0,0.00019989,2]
[349272343,1737088238043,-400.68363312,0.00019989,2]
[349272346,1737088238053,-4543.92480469,0.0001999,5]
[349272349,1737088238063,-652.94111142,0.0001999,5]
[349272352,1737088238072,-63832.98709965,0.0001999,10]
[349272356,1737088238084,-14457.36455187,0.0001999,10]
[349272360,1737088238095,-684.29268817,0.0001999,10]
[349272363,1737088238111,-6561.79765286,0.0001999,10]
[349272368,1737088238123,-13601.56603746,0.0001999,10]
[349272371,1737088238135,-12736.46300026,0.0001999,10]
[349272374,1737088238146,-7242.12401965,0.0001999,10]
[349272546,1737088239991,-597.95323649,0.0001999,10]
[349272552,1737088240050,-1345.81270731,0.0001999,10]
[349272834,1737088242874,-933.507,0.0001999,10]
[349272836,1737088242885,-906.39904048,0.0001999,10]
[349273146,1737088245939,-458.04262499,0.0001999,10]
[349274099,1737088313404,268.761963,0.00013973,2]
[349274102,1737088803161,5935.97459728,0.000151,2]
[349274105,1737089190162,274.312096,0.00013973,2]
[349274161,1737089432099,-250.0,0.00016321,2]
[349274162,1737089432109,-250.0,0.00016486,2]
[349274163,1737089432119,-250.0,0.00016653,2]
[349274164,1737089432128,-701.233178,0.00017039,2]
[349274165,1737089432137,-327.2489569,0.00017268,2]
[349274166,1737089432263,-2405.32920817,0.00017268,2]
[349274190,1737089437911,-250.0,0.00016158,2]
[349274192,1737089437921,-14093.42183493,0.00017268,2]
[349274194,1737089437930,-24880.0,0.0001737,2]
[349274196,1737089437940,-164.99384596,0.000177,2]
[349274198,1737089437950,-8804.71169094,0.000178,2]
[349274200,1737089437959,-199.03417707,0.00018169,2]
[349274202,1737089437969,-2496.01541085,0.00018815,2]
[349274204,1737089437979,-154.47,0.000189,2]
[349274206,1737089437988,-1292.67437846,0.000189,2]
[349274208,1737089437997,-1229.01175456,0.000189,2]
[349274210,1737089438007,-621.95037671,0.000189,2]
[349274212,1737089438016,-534.651,0.00019,2]
[349274214,1737089438026,-621.95037646,0.00019072,2]
[349274216,1737089438034,-164.99384596,0.00019175,2]
[349274218,1737089438044,-167.647135,0.00019178,2]
[349274220,1737089438053,-621.95037646,0.00019245,2]
[349274222,1737089438062,-208.954,0.00019402,2]
[349274224,1737089438072,-260.15991018,0.00019402,2]
[349274226,1737089438081,-621.95037646,0.00019417,2]
[349274228,1737089438090,-7572.31835689,0.0001957,2]
[349274230,1737089438099,-621.95037646,0.0001959,2]
[349274232,1737089438109,-621.95037646,0.00019762,2]
[349274234,1737089438119,-172.80445974,0.00019889,2]
[349274236,1737089438128,-621.95037646,0.00019934,2]
[349274238,1737089438137,-633.34039064,0.00019973,2]
[349274240,1737089438147,-500.0,0.00019989,2]
[349274242,1737089438156,-500.0,0.00019989,2]
[349274244,1737089438166,-500.0,0.00019989,2]
[349274246,1737089438175,-500.0,0.00019989,2]
[349274248,1737089438184,-500.0,0.00019989,2]
[349274250,1737089438194,-500.0,0.00019989,2]
[349274252,1737089438202,-241.40876618,0.00019989,2]
[349274254,1737089438212,-500.0,0.00019989,2]
[349274256,1737089438222,-500.0,0.00019989,2]
[349274258,1737089438231,-500.0,0.00019989,2]
[349274260,1737089438241,-458.13479355,0.00019989,2]
[349274262,1737089438250,-500.0,0.00019989,2]
[349274264,1737089438259,-500.0,0.00019989,2]
[349274266,1737089438268,-426.28357523,0.00019989,2]
[349274268,1737089438278,-500.0,0.00019989,2]
[349274270,1737089438288,-543.76301063,0.00019989,2]
[349274272,1737089438297,-500.0,0.00019989,2]
[349274274,1737089438307,-500.0,0.00019989,2]
[349274276,1737089438317,-500.0,0.00019989,2]
[349274278,1737089438327,-500.0,0.00019989,2]
[349274279,1737089438336,-500.0,0.00019989,2]
[349274280,1737089438346,-293.29000631,0.00019989,2]
[349274281,1737089438356,-500.0,0.00019989,2]
[349274282,1737089438365,-435.91743353,0.00019989,2]
[349274283,1737089438374,-500.0,0.00019989,2]
[349274284,1737089438383,-500.0,0.00019989,2]
[349274285,1737089438396,-500.0,0.00019989,2]
[349274286,1737089438406,-500.0,0.00019989,2]
[349274287,1737089438415,-500.0,0.00019989,2]
[349274288,1737089438424,-500.0,0.00019989,2]
[349274289,1737089438433,-500.0,0.00019989,2]
[349274290,1737089438443,-500.0,0.00019989,2]
[349274291,1737089438451,-500.0,0.00019989,2]
[349274292,1737089438460,-500.0,0.00019989,2]
[349274293,1737089438472,-500.0,0.00019989,2]
[349274294,1737089438481,-500.0,0.00019989,2]
[349274295,1737089438490,-500.0,0.00019989,2]
[349274297,1737089438500,-500.0,0.00019989,2]
[349274299,1737089438511,-500.0,0.00019989,2]
[349274301,1737089438520,-500.0,0.00019989,2]
[349274303,1737089438530,-500.0,0.00019989,2]
[349274305,1737089438539,-500.0,0.00019989,2]
[349274307,1737089438548,-647.02314302,0.00019989,2]
[349274309,1737089438558,-500.0,0.00019989,2]
[349274311,1737089438569,-335.45875605,0.00019989,2]
[349274313,1737089438578,-500.0,0.00019989,2]
[349274315,1737089438587,-500.0,0.00019989,2]
[349274317,1737089438596,-508.7917282,0.00019989,2]
[349274319,1737089438607,-151.0,0.00019989,2]
[349274321,1737089438616,-151.0,0.00019989,2]
[349274323,1737089438625,-151.0,0.00019989,2]
[349274325,1737089438635,-151.0,0.00019989,2]
[349274327,1737089438645,-151.0,0.00019989,2]
[349274329,1737089438655,-161.01205887,0.00019989,2]
[349274331,1737089438665,-151.0,0.00019989,2]
[349274333,1737089438674,-151.0,0.00019989,2]
[349274335,1737089438683,-152.220067,0.00019989,2]
[349274337,1737089438692,-609.137635,0.00019989,2]
[349274339,1737089438702,-609.137635,0.00019989,2]
[349274341,1737089438711,-151.0,0.00019989,2]
[349274343,1737089438720,-191.148787,0.00019989,2]
[349274345,1737089438730,-151.0,0.00019989,2]
[349274347,1737089438739,-151.0,0.00019989,2]
[349274349,1737089438749,-151.0,0.00019989,2]
[349274351,1737089438758,-151.0,0.00019989,2]
[349274353,1737089438768,-157.068709,0.00019989,2]
[349274355,1737089438777,-158.515558,0.00019989,2]
[349274357,1737089438786,-151.0,0.00019989,2]
[349274358,1737089438796,-151.0,0.00019989,2]
[349274359,1737089438805,-151.0,0.00019989,2]
[349274360,1737089438815,-151.0,0.00019989,2]
[349274362,1737089438825,-151.0,0.00019989,2]
[349274363,1737089438834,-8357.5145147,0.0001999,5]
[349274364,1737089438843,-906.86265475,0.0001999,5]
[349274365,1737089438854,-1106527.76587458,0.0001999,10]
[349274366,1737089438863,-151.0,0.0001999,2]
[349274367,1737089438872,-151.0,0.0001999,2]
[349274368,1737089438882,-151.0,0.0001999,2]
[349274369,1737089438892,-151.0,0.0001999,2]
[349274370,1737089438902,-151.0,0.0001999,2]
[349274371,1737089438911,-151.0,0.0001999,2]
[349274372,1737089438921,-151.0,0.0001999,2]
[349274373,1737089438931,-151.0,0.0001999,2]
[349274374,1737089438940,-151.0,0.0001999,2]
[349274375,1737089438950,-151.0,0.0001999,2]
[349274376,1737089438959,-151.0,0.0001999,2]
[349274377,1737089438968,-151.0,0.0001999,2]
[349274378,1737089438978,-151.0,0.0001999,2]
[349274379,1737089438987,-151.0,0.0001999,2]
[349274380,1737089438996,-151.0,0.0001999,2]
[349274381,1737089439005,-151.0,0.0001999,2]
[349274382,1737089439015,-153.521756,0.0001999,2]
[349274383,1737089439024,-151.0,0.0001999,2]
[349274385,1737089439033,-151.0,0.0001999,2]
[349274386,1737089439043,-151.0,0.0001999,2]
[349274387,1737089439052,-153.155032,0.0001999,2]
[349274388,1737089439061,-151.0,0.0001999,2]
[349274389,1737089439071,-151.0,0.0001999,2]
[349274390,1737089439080,-234.058572,0.0001999,2]
[349274391,1737089439091,-234.058572,0.0001999,2]
[349274392,1737089439101,-234.058572,0.0001999,2]
[349274393,1737089439112,-234.058572,0.0001999,2]
[349274394,1737089439121,-151.0,0.0001999,2]
[349274395,1737089439131,-151.0,0.0001999,2]
[349274396,1737089439140,-151.0,0.0001999,2]
[349274397,1737089439151,-151.0,0.0001999,2]
[349274398,1737089439160,-151.0,0.0001999,2]
[349274399,1737089439169,-151.0,0.0001999,2]
[349274400,1737089439179,-151.0,0.0001999,2]
[349274401,1737089439189,-151.0,0.0001999,2]
[349274402,1737089439199,-151.0,0.0001999,2]
[349274403,1737089439209,-151.0,0.0001999,2]
[349274404,1737089439218,-151.0,0.0001999,2]
[349274405,1737089439227,-151.0,0.0001999,2]
[349274406,1737089439237,-609.137635,0.0001999,2]
[349274407,1737089439247,-609.137635,0.0001999,2]
[349274408,1737089439256,-609.137635,0.0001999,2]
[349274409,1737089439265,-609.137635,0.0001999,2]
[349274410,1737089439274,-151.0,0.0001999,2]
[349274411,1737089439283,-151.0,0.0001999,2]
[349274412,1737089439293,-170.353489,0.0001999,2]
[349274413,1737089439302,-151.0,0.0001999,2]
[349274414,1737089439313,-152.866207,0.0001999,2]
[349274415,1737089439323,-151.0,0.0001999,2]
[349274416,1737089439332,-164.684042,0.0001999,2]
[349274417,1737089439342,-151.0,0.0001999,2]
[349274418,1737089439352,-151.0,0.0001999,2]
[349274419,1737089439361,-151.0,0.0001999,2]
[349274420,1737089439371,-151.0,0.0001999,2]
[349274421,1737089439380,-151.0,0.0001999,2]
[349274422,1737089439390,-202.631146,0.0001999,2]
[349274423,1737089439400,-219148.54152511,0.0002,5]
[349274424,1737089439410,-3161.88,0.0002,2]
[349274425,1737089439420,-1069.62,0.0002,2]
[349274426,1737089439430,-8257.55,0.0002,2]
[349274427,1737089439439,-1086.0,0.0002,2]
[349274428,1737089439449,-151.0,0.0002,2]
[349274429,1737089439459,-151.0,0.0002,2]
[349274430,1737089439469,-739121.31384389,0.0002,5]
[349274431,1737089439488,-1267.37600236,0.0002,5]
[349274432,1737089439500,-1069.66884816,0.0002,5]
[349274433,1737089439512,-29669.28718249,0.0002,5]
[349274478,1737089440103,-1005.6745737,0.0002,5]
[349274508,1737089442907,-4939.085424,0.0001979,2]
[349274510,1737089442917,-563.63039206,0.0002,5]
[349274512,1737089442929,-3448.582171,0.0002,5]
[349274514,1737089442940,-1739.26615875,0.0002,5]
[349274516,1737089442952,-305.412583,0.0002,5]
[349274530,1737089443065,-16226.63454076,0.0002,5]
[349274827,1737089446041,-500.0,0.0002,5]
[349274829,1737089446053,-394.0,0.0002,5]
[349274831,1737089446065,-2919.31740409,0.0002,5]
[349274930,1737090103873,277.685898,0.00013973,2]
[349274932,1737090341056,2703.0,0.00025,120]
[349274984,1737090632175,-468.04,0.0001661,2]
[349274989,1737090632231,-1021.02227985,0.0001661,2]
[349274993,1737090632412,-1489.06227985,0.00016778,2]
[349274994,1737090632429,-1489.06227985,0.00018,2]
[349274995,1737090632439,-350.616589,0.0001848,2]
[349274996,1737090632449,-512.437,0.00019,2]
[349274997,1737090632458,-483.68317455,0.00019501,2]
[349274998,1737090632468,-164.99384596,0.0001959,2]
[349274999,1737090632477,-300.0,0.00019677,2]
[349275000,1737090632486,-11373.12967684,0.00019677,2]
[349275001,1737090632499,-7282.87032316,0.00019677,2]
[349275002,1737090632508,-4726.58340691,0.00019681,7]
[349275003,1737090632520,-273.41659309,0.00019681,7]
[349275004,1737090632530,-4206.68793989,0.0001969,2]
[349275005,1737090632540,-6126.65493671,0.000198,2]
[349275006,1737090632550,-11533.20539792,0.000199,2]
[349275007,1737090632562,-3457.49086426,0.000199,2]
[349275008,1737090632573,-1869.03403965,0.000199,2]
[349275019,1737090638163,-1673.04631555,0.000199,2]
[349275020,1737090638223,-3499.791812,0.000199,2]
[349275021,1737090638235,-8043.25143384,0.000199,2]
[349275022,1737090638248,-500.0,0.000199,2]
[349275023,1737090638259,-324.22683165,0.000199,2]
[349275024,1737090638271,-822.16412362,0.000199,2]
[349275025,1737090638283,-657.39652263,0.000199,2]
[349275037,1737090640343,-8582.70210695,0.00019701,2]
[349275038,1737090640353,-1439.20681806,0.000199,2]
[349275039,1737090640362,-5156.43758167,0.000199,2]
[349275040,1737090640374,-1987.05770722,0.000199,2]
[349275041,1737090640384,-500.65191344,0.00019973,2]
[349275042,1737090640394,-502.11291803,0.00019973,2]
[349275043,1737090640407,-502.50222071,0.00019973,2]
[349275044,1737090640417,-500.0,0.00019973,2]
[349275045,1737090640427,-501.95263661,0.00019973,2]
[349275046,1737090640436,-500.0,0.00019973,2]
[349275047,1737090640446,-559.91687658,0.00019973,2]
[349275048,1737090640456,-502.58936462,0.00019973,2]
[349275049,1737090640466,-500.0,0.00019973,2]
[349275050,1737090640476,-500.0,0.00019999,2]
[349275051,1737090640486,-416.56700883,0.00019999,2]
[349275052,1737090640496,-500.0,0.00019999,2]
[349275053,1737090640507,-500.0,0.00019999,2]
[349275054,1737090640516,-547.90493628,0.00019999,2]
[349275055,1737090640527,-203.93986178,0.00019999,2]
[349275056,1737090640537,-176.58071581,0.00019999,2]
[349275057,1737090640547,-262.00940348,0.00019999,2]
[349275058,1737090640557,-500.0,0.00019999,2]
[349275059,1737090640567,-533.82299117,0.00019999,2]
[349275060,1737090640577,-500.0,0.00019999,2]
[349275061,1737090640588,-152.82465153,0.00019999,2]
[349275062,1737090640598,-500.0,0.00019999,2]
[349275063,1737090640609,-500.0,0.00019999,2]
[349275064,1737090640631,-283.37164056,0.00019999,2]
[349275065,1737090640641,-500.0,0.00019999,2]
[349275066,1737090640651,-500.0,0.00019999,2]
[349275067,1737090640660,-500.0,0.00019999,2]
[349275068,1737090640669,-500.0,0.00019999,2]
[349275069,1737090640679,-500.0,0.00019999,2]
[349275070,1737090640689,-500.0,0.00019999,2]
[349275071,1737090640698,-500.0,0.00019999,2]
[349275072,1737090640708,-500.0,0.00019999,2]
[349275073,1737090640718,-500.0,0.00019999,2]
[349275074,1737090640728,-500.0,0.00019999,2]
[349275075,1737090640739,-471.34431313,0.00019999,2]
[349275076,1737090640749,-500.0,0.00019999,2]
[349275077,1737090640759,-426.59672444,0.00019999,2]
[349275078,1737090640769,-500.0,0.00019999,2]
[349275079,1737090640778,-500.0,0.00019999,2]
[349275080,1737090640787,-259.62234074,0.00019999,2]
[349275081,1737090640797,-101148.02580078,0.0002,5]
[349275082,1737090640810,-500.0,0.0002,5]
[349275117,1737090643154,-11999.05732364,0.0002,5]
[349275142,1737090989129,280.036541,0.00013973,2]
[349275170,1737091750172,198.0,0.00025,120]
[349275186,1737091830254,10000.0,0.000155,2]
[349275234,1737091832489,-300.0,0.0001568,2]
[349275235,1737091832499,-16400.83813948,0.0001568,2]
[349275236,1737091832547,-2949.00033053,0.0001568,2]
[349275237,1737091832612,-3435.28023237,0.0001568,2]
[349275287,1737091838301,-17155.70136911,0.0001568,2]
[349275293,1737091838366,-3621.0,0.0001568,2]
[349275294,1737091838378,-1686.99999999,0.0001568,2]
[349275370,1737091846800,10000.0,0.000155,2]
[349275371,1737091863066,10000.0,0.000155,2]
[349275372,1737091879022,10000.0,0.000155,2]
[349275374,1737091903302,266.034713,0.00013973,2]
[349275375,1737091951931,15093.63224303,0.00015366,2]
[349275376,1737091967279,1922.96166086,0.00015366,2]
[349275377,1737092025139,1534.08182279,0.00015365,2]
[349275379,1737092134211,15093.63224303,0.00015363,2]
[349275380,1737092193259,1518.17,0.00025,120]
[349275389,1737092719007,660.13,0.00025,120]
[349275440,1737092899526,282.808199,0.00013973,2]
[349275517,1737093038431,-26742.0,0.00015996,2]
[349275518,1737093038442,-1739.54148172,0.00016,2]
[349275519,1737093038452,-3521.78111502,0.00016,2]
[349275520,1737093038462,-163.01755672,0.00017366,2]
[349275521,1737093038471,-10204.6588296,0.00017466,2]
[349275522,1737093038481,-350.616589,0.00017597,2]
[349275523,1737093038491,-1119.73799299,0.000176,2]
[349275524,1737093038500,-369.0927659,0.00017718,2]
[349275525,1737093038509,-201.9968253,0.00017724,2]
[349275526,1737093038519,-779.1104359,0.00017743,2]
[349275527,1737093038528,-1004.9703876,0.00017827,2]
[349275528,1737093038537,-154.45,0.000186,2]
[349275529,1737093038547,-6905.37877927,0.000189,2]
[349275530,1737093038557,-500.0,0.00018999,2]
[349275531,1737093038567,-500.0,0.00018999,2]
[349275532,1737093038577,-500.0,0.00018999,2]
[349275533,1737093038586,-500.0,0.00018999,2]
[349275534,1737093038596,-500.0,0.00018999,2]
[349275535,1737093038606,-304.4927486,0.00018999,2]
[349275536,1737093038615,-500.0,0.00018999,2]
[349275537,1737093038624,-500.0,0.00018999,2]
[349275538,1737093038633,-500.0,0.00018999,2]
[349275539,1737093038643,-500.0,0.00018999,2]
[349275540,1737093038653,-500.0,0.00018999,2]
[349275541,1737093038663,-500.0,0.00018999,2]
[349275542,1737093038673,-500.0,0.00018999,2]
[349275543,1737093038683,-500.0,0.00018999,2]
[349275544,1737093038698,-500.0,0.00018999,2]
[349275545,1737093038707,-500.0,0.00018999,2]
[349275546,1737093038716,-525.84620626,0.00018999,2]
[349275547,1737093038725,-500.0,0.00018999,2]
[349275548,1737093038735,-304.98052419,0.00018999,2]
[349275549,1737093038744,-500.0,0.00018999,2]
[349275550,1737093038753,-500.0,0.00018999,2]
[349275551,1737093038762,-500.0,0.00018999,2]
[349275552,1737093038772,-500.0,0.00018999,2]
[349275553,1737093038782,-500.0,0.00018999,2]
[349275554,1737093038791,-500.0,0.00018999,2]
[349275555,1737093038800,-500.0,0.00018999,2]
[349275556,1737093038809,-500.0,0.00018999,2]
[349275557,1737093038819,-268.23691316,0.00018999,2]
[349275558,1737093038828,-500.0,0.00018999,2]
[349275559,1737093038837,-500.0,0.00018999,2]
[349275560,1737093038846,-500.0,0.00018999,2]
[349275561,1737093038855,-500.0,0.00018999,2]
[349275562,1737093038864,-500.0,0.00018999,2]
[349275563,1737093038873,-500.0,0.00018999,2]
[349275564,1737093038882,-500.0,0.00018999,2]
[349275565,1737093038892,-500.0,0.00018999,2]
[349275566,1737093038901,-500.0,0.00018999,2]
[349275567,1737093038911,-500.0,0.00018999,2]
[349275568,1737093038920,-500.0,0.00018999,2]
[349275569,1737093038929,-500.0,0.00018999,2]
[349275570,1737093038939,-500.0,0.00018999,2]
[349275571,1737093038948,-500.0,0.00018999,2]
[349275572,1737093038957,-500.0,0.00018999,2]
[349275573,1737093038966,-500.0,0.00018999,2]
[349275574,1737093038976,-500.0,0.00018999,2]
[349275575,1737093038985,-432.98627165,0.00018999,2]
[349275576,1737093038994,-500.0,0.00018999,2]
[349275577,1737093039003,-500.0,0.00018999,2]
[349275578,1737093039012,-500.0,0.00018999,2]
[349275579,1737093039020,-500.0,0.00018999,2]
[349275580,1737093039029,-500.0,0.00018999,2]
[349275581,1737093039038,-500.0,0.00018999,2]
[349275582,1737093039047,-500.0,0.00018999,2]
[349275583,1737093039056,-500.0,0.00018999,2]
[349275584,1737093039066,-500.0,0.00018999,2]
[349275585,1737093039075,-500.0,0.00018999,2]
[349275586,1737093039084,-500.0,0.00018999,2]
[349275587,1737093039093,-500.0,0.00018999,2]
[349275588,1737093039101,-500.0,0.00018999,2]
[349275589,1737093039111,-500.0,0.00018999,2]
[349275590,1737093039120,-4133.91284345,0.00019,5]
[349275591,1737093039154,-44.84441391,0.00019,5]
[349275592,1737093039163,-690.65924255,0.00019,5]
[349275593,1737093039173,-139.31156289,0.00019,2]
[349275594,1737093039185,-351.38643711,0.00019,2]
[349275595,1737093039195,-17273.1929141,0.00019,2]
[349275607,1737093040958,-5075.0,0.00019,2]
[349275629,1737093043427,-125332.3971339,0.00019,2]
[349275630,1737093043437,-6905.37877898,0.00019072,2]
[349275631,1737093043446,-6905.37877898,0.00019245,2]
[349275632,1737093043455,-239.105,0.00019402,2]
[349275633,1737093043464,-6905.37877898,0.00019417,2]
[349275634,1737093043473,-163.01755671,0.0001943,2]
[349275635,1737093043482,-151.284332,0.00019473,2]